[Event "16th Deltalift Open 2019"]
[Site "Halmstad"]
[Date "2019.05.30"]
[Round "2.8"]
[White "Lindberg, Bengt"]
[Black "Berglind, Axel"]
[Result "1-0"]
[ECO "B90"]
[WhiteElo "2382"]
[BlackElo "2072"]
[Annotator "ChessBase"]
[PlyCount "125"]
[EventDate "2019.05.30"]
[EventType "swiss"]
[EventCountry "SWE"]
[SourceTitle "playchess.com"]
[Source "ChessBase"]
[SourceQuality "1"]
[TimeControl "1800+12"]

1. e4 {[%emt 0:00:00]} c5 {[%emt 0:00:00]} 2. Nf3 {[%emt 0:00:00]} d6 {[%emt 0:00:00]} 3. d4 {[%emt 0:00:00]} cxd4 {[%emt 0:00:00]} 4. Nxd4 {[%emt 0:00:00]} Nf6 {[%emt 0:00:00]} 5. Nc3 {[%emt 0:00:00]} a6 {[%emt 0:00:00]} 6. Be3 {[%emt 0:00:28]} e5 {[%emt 0:00:00]} 7. Nb3 {[%emt 0:00:02]} Be6 {[%emt 0:00:01]} 8. h3 {[%emt 0:00:15]} b5 {[%emt 0:03:46]} 9. g4 {[%emt 0:02:20]} Nbd7 {[%emt 0:03:22]} 10. Bg2 {[%emt 0:01:14]} Nb6 {[%emt 0:01:06]} 11. g5 {[%emt 0:07:12]} Nfd7 {[%emt 0:00:32]} 12. h4 {[%emt 0:00:12]} Nc4 {[%emt 0:00:49]} 13. Bc1 {[%emt 0:00:03]} Rc8 {[%emt 0:00:53]} 14. Nd5 {[%emt 0:02:07]} Bxd5 {[%emt 0:09:31]} 15. Qxd5 {[%emt 0:01:50]} Ndb6 {[%emt 0:00:06]} 16. Qd3 {[%emt 0:00:03]} Na4 {[%emt 0:00:23]} 17. Rb1 {[%emt 0:00:21]} Be7 {[%emt 0:01:44]} 18. c3 {[%emt 0:01:51]} O-O {[%emt 0:00:34]} 19. O-O {[%emt 0:00:58]} f6 {[%emt 0:00:21]} 20. Qg3 {[%emt 0:00:10]} Kh8 {[%emt 0:02:40]} 21. Bh3 {[%emt 0:02:31]} Rc7 {[%emt 0:00:01]} 22. g6 {[%emt 0:00:11]} hxg6 {[%emt 0:00:03]} 23. Qxg6 {[%emt 0:00:04]} Qe8 {[%emt 0:00:02]} 24. h5 {[%emt 0:00:32]} d5 {[%emt 0:00:42]} 25. Bf5 {[%emt 0:02:23]} Qxg6+ {[%emt 0:00:02]} 26. hxg6 {[%emt 0:00:02]} dxe4 {[%emt 0:04:04]} 27. Kg2 {[%emt 0:00:31]} Rc6 {[%emt 0:00:06]} 28. Rh1+ {[%emt 0:00:29]} Kg8 {[%emt 0:00:01]} 29. Rh7 {[%emt 0:00:33]} Rd8 {[%emt 0:02:20]} 30. Be3 {[%emt 0:00:27]} Nxe3+ {[%emt 0:00:50]} 31. fxe3 {[%emt 0:00:02]} Bc5 {[%emt 0:00:01]} 32. Rbh1 {[%emt 0:03:20]} Kf8 {[%emt 0:00:01]} 33. Rh8+ {[%emt 0:01:41]} Ke7 {[%emt 0:00:01]} 34. Rxd8 {[%emt 0:00:01]} Kxd8 {[%emt 0:00:01]} 35. Rh8+ {[%emt 0:00:02]} Ke7 {[%emt 0:00:00]} 36. Rg8 {[%emt 0:00:02]} Bxe3 {[%emt 0:00:02]} 37. Rxg7+ {[%emt 0:00:02]} Kf8 {[%emt 0:00:01]} 38. Rf7+ {[%emt 0:00:05]} Kg8 {[%emt 0:00:02]} 39. Re7 {[%emt 0:01:06]} Bh6 {[%emt 0:00:33]} 40. Bxe4 {[%emt 0:02:35]} Rd6 {[%emt 0:00:14]} 41. Kf3 {[%emt 0:00:34]} Nxb2 {[%emt 0:00:53]} 42. Nc5 {[%emt 0:00:08]} Nc4 {[%emt 0:00:24]} 43. Bf5 {[%emt 0:00:36]} e4+ {[%emt 0:02:01]} 44. Nxe4 {[%emt 0:01:00]} Nd2+ {[%emt 0:00:18]} 45. Nxd2 {[%emt 0:00:06]} Rxd2 {[%emt 0:00:01]} 46. Be6+ {[%emt 0:00:09]} Kf8 {[%emt 0:00:01]} 47. Rf7+ {[%emt 0:00:07]} Ke8 {[%emt 0:00:01]} 48. Rh7 {[%emt 0:00:14]} Bf8 {[%emt 0:00:11]} 49. g7 {[%emt 0:00:16]} Bxg7 {[%emt 0:00:01]} 50. Rxg7 {[%emt 0:00:01]} Rd3+ {[%emt 0:00:01]} 51. Ke4 {[%emt 0:00:07]} Rxc3 {[%emt 0:00:02]} 52. Ra7 {[%emt 0:00:20]} Rc1 {[%emt 0:00:56]} 53. Rxa6 {[%emt 0:00:20]} Ke7 {[%emt 0:00:01]} 54. Bb3 {[%emt 0:00:07]} Re1+ {[%emt 0:00:02]} 55. Kd5 {[%emt 0:00:28]} Re5+ {[%emt 0:00:02]} 56. Kc6 {[%emt 0:00:07]} f5 {[%emt 0:00:01]} 57. Rb6 {[%emt 0:00:14]} Kf6 {[%emt 0:00:34]} 58. Rxb5 {[%emt 0:00:04]} Re1 {[%emt 0:00:02]} 59. Rb8 {[%emt 0:00:27]} f4 {[%emt 0:00:04]} 60. Rf8+ Kg5 {[%emt 0:00:05]} 61. a4 {[%emt 0:00:25]} Kg4 {[%emt 0:00:37]} 62. Bc4 {[%emt 0:00:18]} Ra1 {[%emt 0:00:30]} 63. Bb5 {[%emt 0:00:11]} 1-0

[Event "16th Deltalift Open 2019"]
[Site "Halmstad"]
[Date "2019.05.30"]
[Round "2.9"]
[White "Hautajarvi, Jukka"]
[Black "Seo, Jung Min"]
[Result "0-1"]
[ECO "B51"]
[WhiteElo "2068"]
[BlackElo "2377"]
[Annotator "ChessBase"]
[PlyCount "110"]
[EventDate "2019.05.30"]
[EventType "swiss"]
[EventCountry "SWE"]
[SourceTitle "playchess.com"]
[Source "ChessBase"]
[SourceQuality "1"]
[TimeControl "1800+12"]

1. e4 {[%emt 0:00:30]} c5 {[%emt 0:00:00]} 2. Nf3 {[%emt 0:00:12]} d6 {[%emt 0:00:00]} 3. Bb5+ {[%emt 0:00:57]} Nd7 {[%emt 0:00:00]} 4. Nc3 {[%emt 0:01:00]} e5 {[%emt 0:02:03]} 5. d3 {[%emt 0:00:16]} Ngf6 {[%emt 0:00:08]} 6. Bc4 {[%emt 0:00:31]} h6 {[%emt 0:00:32]} 7. a4 {[%emt 0:00:27]} g6 {[%emt 0:03:20]} 8. h3 {[%emt 0:01:02]} Bg7 {[%emt 0:00:06]} 9. Be3 {[%emt 0:00:03]} Nb8 {[%emt 0:00:21]} 10. Qd2 {[%emt 0:00:09]} Nc6 {[%emt 0:00:03]} 11. Bb5 {[%emt 0:03:24]} Bd7 {[%emt 0:00:53]} 12. Bxc6 {[%emt 0:03:29]} Bxc6 {[%emt 0:00:40]} 13. Ne2 {[%emt 0:00:07]} Nd7 {[%emt 0:00:41]} 14. c4 {[%emt 0:00:08]} f5 {[%emt 0:00:30]} 15. Qc3 {[%emt 0:01:42]} O-O {[%emt 0:02:22]} 16. Qc2 {[%emt 0:00:06]} Nf6 {[%emt 0:01:17]} 17. Nc3 {[%emt 0:00:03]} Rc8 {[%emt 0:01:15]} 18. b3 {[%emt 0:01:48]} Nh5 {[%emt 0:01:01]} 19. Rb1 {[%emt 0:03:33]} Nf4 {[%emt 0:02:54]} 20. Bxf4 {[%emt 0:03:14]} exf4 {[%emt 0:00:01]} 21. O-O {[%emt 0:00:10]} Bxc3 {[%emt 0:00:35]} 22. Qxc3 {[%emt 0:00:02]} fxe4 {[%emt 0:00:01]} 23. dxe4 {[%emt 0:00:01]} Bxe4 {[%emt 0:00:02]} 24. Rbd1 {[%emt 0:00:02]} Qf6 {[%emt 0:00:27]} 25. Qd2 {[%emt 0:01:06]} Rcd8 {[%emt 0:00:13]} 26. Nh2 {[%emt 0:00:13]} Rfe8 {[%emt 0:01:03]} 27. Rfe1 {[%emt 0:00:11]} h5 {[%emt 0:00:19]} 28. f3 {[%emt 0:00:38]} Bc6 {[%emt 0:00:06]} 29. Rxe8+ {[%emt 0:00:04]} Bxe8 {[%emt 0:00:15]} 30. Qd5+ {[%emt 0:00:24]} Qf7 {[%emt 0:00:01]} 31. Qg5 {[%emt 0:00:01]} Rd7 {[%emt 0:00:10]} 32. Nf1 {[%emt 0:00:13]} Qf5 {[%emt 0:01:13]} 33. Qxf5 {[%emt 0:01:25]} gxf5 {[%emt 0:00:01]} 34. Kf2 {[%emt 0:00:03]} h4 {[%emt 0:00:46]} 35. Rd5 {[%emt 0:00:07]} Bg6 {[%emt 0:00:01]} 36. Nd2 {[%emt 0:00:30]} Kf7 {[%emt 0:00:26]} 37. Nb1 {[%emt 0:00:02]} Kf6 {[%emt 0:00:21]} 38. Nc3 {[%emt 0:00:04]} Bf7 {[%emt 0:00:07]} 39. Rd2 {[%emt 0:00:09]} a6 {[%emt 0:00:03]} 40. Rd1 {[%emt 0:01:13]} b6 {[%emt 0:00:34]} 41. Rd2 {[%emt 0:00:02]} Ke5 {[%emt 0:00:46]} 42. Nd5 {[%emt 0:00:53]} Bxd5 {[%emt 0:00:04]} 43. Rxd5+ {[%emt 0:00:02]} Ke6 {[%emt 0:00:02]} 44. Ke1 {[%emt 0:01:05]} b5 {[%emt 0:00:09]} 45. axb5 {[%emt 0:00:02]} axb5 {[%emt 0:00:00]} 46. Kd1 {[%emt 0:00:21]} Ra7 {[%emt 0:00:12]} 47. Rd2 {[%emt 0:01:03]} Ra1+ {[%emt 0:00:05]} 48. Ke2 {[%emt 0:00:02]} Rb1 {[%emt 0:00:35]} 49. Ra2 {[%emt 0:01:24]} Rxb3 {[%emt 0:00:09]} 50. cxb5 {[%emt 0:00:02]} Rxb5 {[%emt 0:00:01]} 51. Ra8 {[%emt 0:00:02]} Rb2+ {[%emt 0:00:02]} 52. Kf1 {[%emt 0:00:03]} d5 {[%emt 0:00:32]} 53. Rh8 {[%emt 0:00:02]} c4 {[%emt 0:00:10]} 54. Rxh4 {[%emt 0:00:22]} Ke5 {[%emt 0:00:02]} 55. Rh8 {[%emt 0:00:02]} c3 {[%emt 0:00:03]} 0-1

[Event "16th Deltalift Open 2019"]
[Site "Halmstad"]
[Date "2019.05.30"]
[Round "2.10"]
[White "Rydstrom, Tom"]
[Black "Carlstrom, Niklas"]
[Result "1-0"]
[ECO "D00"]
[WhiteElo "2365"]
[BlackElo "2065"]
[Annotator "ChessBase"]
[PlyCount "47"]
[EventDate "2019.05.30"]
[EventType "swiss"]
[EventCountry "SWE"]
[SourceTitle "playchess.com"]
[Source "ChessBase"]
[SourceQuality "1"]
[TimeControl "1800+12"]

1. d4 {[%emt 0:00:00]} d5 {[%emt 0:00:02]} 2. Nc3 {[%emt 0:00:08]} Nc6 {[%emt 0:00:13]} 3. e4 {[%emt 0:01:07]} e5 {[%emt 0:01:09]} 4. Bb5 {[%emt 0:01:03]} dxe4 {[%emt 0:01:20]} 5. d5 {[%emt 0:00:15]} a6 {[%emt 0:00:05]} 6. Ba4 {[%emt 0:04:11]} b5 {[%emt 0:00:07]} 7. Nxb5 {[%emt 0:00:09]} axb5 {[%emt 0:00:07]} 8. Bxb5 {[%emt 0:00:02]} Nge7 {[%emt 0:01:27]} 9. a4 {[%emt 0:03:08]} Rb8 {[%emt 0:03:21]} 10. dxc6 {[%emt 0:05:34]} Qxd1+ {[%emt 0:00:10]} 11. Kxd1 {[%emt 0:00:02]} Nd5 {[%emt 0:00:28]} 12. Ne2 {[%emt 0:04:49]} Bc5 {[%emt 0:01:09]} 13. Rf1 {[%emt 0:00:02]} O-O {[%emt 0:00:25]} 14. c3 {[%emt 0:02:16]} Bf5 {[%emt 0:02:29]} 15. b4 {[%emt 0:03:53]} Rfd8 {[%emt 0:01:04]} 16. Kc2 {[%emt 0:00:34]} Bxf2 {[%emt 0:06:21]} 17. Rxf2 {[%emt 0:00:18]} Bg6 {[%emt 0:01:30]} 18. Kb3 {[%emt 0:00:04]} f5 {[%emt 0:01:30]} 19. Bc4 {[%emt 0:01:44]} f4 {[%emt 0:00:13]} 20. Bxf4 {[%emt 0:01:37]} exf4 {[%emt 0:00:09]} 21. Nxf4 {[%emt 0:00:01]} Bf7 {[%emt 0:00:15]} 22. Nxd5 {[%emt 0:00:06]} Bxd5 {[%emt 0:00:07]} 23. Bxd5+ {[%emt 0:00:01]} Rxd5 {[%emt 0:00:10]} 24. Re2 {[%emt 0:00:02]} 1-0

[Event "16th Deltalift Open 2019"]
[Site "Halmstad"]
[Date "2019.05.30"]
[Round "2.11"]
[White "Bohman Karlholm, Adrian"]
[Black "Malmstig, Erik"]
[Result "0-1"]
[ECO "A58"]
[WhiteElo "2065"]
[BlackElo "2352"]
[Annotator "ChessBase"]
[PlyCount "64"]
[EventDate "2019.05.30"]
[EventType "swiss"]
[EventCountry "SWE"]
[SourceTitle "playchess.com"]
[Source "ChessBase"]
[SourceQuality "1"]
[TimeControl "1800+12"]

1. d4 {[%emt 0:00:00]} Nf6 {[%emt 0:00:00]} 2. c4 {[%emt 0:00:00]} c5 {[%emt 0:00:02]} 3. d5 {[%emt 0:00:06]} b5 {[%emt 0:00:04]} 4. cxb5 {[%emt 0:00:07]} a6 {[%emt 0:00:03]} 5. bxa6 {[%emt 0:00:08]} g6 {[%emt 0:00:04]} 6. Nc3 {[%emt 0:00:20]} Bxa6 {[%emt 0:00:05]} 7. Nf3 {[%emt 0:00:19]} d6 {[%emt 0:00:17]} 8. g3 {[%emt 0:00:13]} Bg7 {[%emt 0:00:11]} 9. Bg2 {[%emt 0:00:06]} Nbd7 {[%emt 0:00:09]} 10. Rb1 {[%emt 0:00:19]} O-O {[%emt 0:00:22]} 11. b3 {[%emt 0:00:21]} Qa5 {[%emt 0:00:26]} 12. Bd2 {[%emt 0:01:05]} Rfb8 {[%emt 0:00:42]} 13. O-O {[%emt 0:00:56]} Qc7 {[%emt 0:01:12]} 14. h3 {[%emt 0:01:11]} Qb7 {[%emt 0:01:35]} 15. Qc2 {[%emt 0:01:17]} Nxd5 {[%emt 0:01:35]} 16. Nxd5 {[%emt 0:01:02]} Qxd5 {[%emt 0:00:06]} 17. Ng5 {[%emt 0:00:40]} Qe5 {[%emt 0:00:25]} 18. Bxa8 {[%emt 0:02:46]} Rxa8 {[%emt 0:00:05]} 19. Rfe1 {[%emt 0:00:56]} Bb7 {[%emt 0:02:21]} 20. e4 {[%emt 0:01:24]} h6 {[%emt 0:01:52]} 21. Nf3 {[%emt 0:01:21]} Qh5 {[%emt 0:00:49]} 22. Kg2 {[%emt 0:01:16]} f5 {[%emt 0:00:33]} 23. g4 {[%emt 0:05:22]} fxg4 {[%emt 0:00:39]} 24. Ng1 {[%emt 0:00:20]} gxh3+ {[%emt 0:04:28]} 25. Nxh3 {[%emt 0:01:32]} Qg4+ {[%emt 0:00:12]} 26. Kh2 {[%emt 0:00:15]} Ne5 {[%emt 0:01:27]} 27. Ng1 {[%emt 0:01:51]} Rf8 {[%emt 0:03:26]} 28. f4 {[%emt 0:01:56]} g5 {[%emt 0:00:11]} 29. f5 {[%emt 0:02:06]} Rxf5 {[%emt 0:00:18]} 30. Re2 {[%emt 0:01:53]} Nf3+ {[%emt 0:01:45]} 31. Nxf3 {[%emt 0:02:09]} Rxf3 {[%emt 0:00:14]} 32. Rg2 {[%emt 0:00:18]} Qh4+ {[%emt 0:00:42]} 0-1

[Event "16th Deltalift Open 2019"]
[Site "Halmstad"]
[Date "2019.05.30"]
[Round "2.12"]
[White "Bellon Lopez, Juan Manuel"]
[Black "Mattsson, Michael"]
[Result "1-0"]
[ECO "A45"]
[WhiteElo "2345"]
[BlackElo "2063"]
[Annotator "ChessBase"]
[PlyCount "61"]
[EventDate "2019.05.30"]
[EventType "swiss"]
[EventCountry "SWE"]
[SourceTitle "playchess.com"]
[Source "ChessBase"]
[SourceQuality "1"]
[TimeControl "1800+12"]

1. d4 {[%emt 0:00:00]} Nf6 {[%emt 0:00:00]} 2. Bg5 {[%emt 0:00:00]} d5 {[%emt 0:00:00]} 3. Bxf6 {[%emt 0:00:00]} exf6 {[%emt 0:00:00]} 4. e3 {[%emt 0:00:00]} c6 {[%emt 0:00:00]} 5. c4 {[%emt 0:00:00]} Qb6 {[%emt 0:02:42]} 6. Qb3 {[%emt 0:01:59]} dxc4 {[%emt 0:00:43]} 7. Bxc4 {[%emt 0:00:16]} Qxb3 {[%emt 0:00:06]} 8. axb3 {[%emt 0:00:18]} b5 {[%emt 0:00:45]} 9. Be2 {[%emt 0:00:19]} Be6 {[%emt 0:00:10]} 10. Nd2 {[%emt 0:00:08]} Bb4 {[%emt 0:00:30]} 11. Bd1 {[%emt 0:00:01]} O-O {[%emt 0:01:56]} 12. Ne2 {[%emt 0:00:01]} a5 {[%emt 0:01:57]} 13. Nf4 {[%emt 0:00:02]} Nd7 {[%emt 0:02:20]} 14. Rc1 {[%emt 0:04:04]} c5 {[%emt 0:00:48]} 15. d5 {[%emt 0:00:19]} Bf5 {[%emt 0:00:26]} 16. Be2 {[%emt 0:01:39]} g5 {[%emt 0:03:09]} 17. Nh5 {[%emt 0:02:01]} Rfb8 {[%emt 0:00:46]} 18. h4 {[%emt 0:00:32]} Be4 {[%emt 0:02:06]} 19. Bf3 {[%emt 0:01:38]} Bxf3 {[%emt 0:00:57]} 20. gxf3 {[%emt 0:00:02]} Ne5 {[%emt 0:01:52]} 21. Ke2 {[%emt 0:00:01]} Bxd2 {[%emt 0:00:44]} 22. Kxd2 {[%emt 0:00:09]} Nxf3+ {[%emt 0:00:54]} 23. Ke2 {[%emt 0:00:02]} Nxh4 {[%emt 0:00:20]} 24. Rxc5 {[%emt 0:01:42]} a4 {[%emt 0:02:44]} 25. d6 {[%emt 0:02:55]} a3 {[%emt 0:02:48]} 26. bxa3 {[%emt 0:00:13]} Rxa3 {[%emt 0:00:02]} 27. Rhc1 {[%emt 0:01:53]} Ra2+ {[%emt 0:01:31]} 28. Kf1 {[%emt 0:00:58]} Rf8 {[%emt 0:02:53]} 29. Rc8 {[%emt 0:00:02]} Ng6 {[%emt 0:00:23]} 30. Nxf6+ {[%emt 0:03:05]} Kg7 {[%emt 0:00:09]} 31. d7 {[%emt 0:01:00]} 1-0

[Event "16th Deltalift Open 2019"]
[Site "Halmstad"]
[Date "2019.05.30"]
[Round "2.13"]
[White "Mejvik, Jacob"]
[Black "Olund, Joar"]
[Result "1-0"]
[ECO "B12"]
[WhiteElo "2057"]
[BlackElo "2328"]
[Annotator "ChessBase"]
[PlyCount "111"]
[EventDate "2019.05.30"]
[EventType "swiss"]
[EventCountry "SWE"]
[SourceTitle "playchess.com"]
[Source "ChessBase"]
[SourceQuality "1"]
[TimeControl "1800+12"]

1. e4 {[%emt 0:00:01]} c6 {[%emt 0:00:00]} 2. d4 {[%emt 0:00:05]} d5 {[%emt 0:00:00]} 3. e5 {[%emt 0:00:04]} Bf5 {[%emt 0:00:00]} 4. h4 {[%emt 0:00:04]} h6 {[%emt 0:00:00]} 5. g4 {[%emt 0:03:44]} Bd7 {[%emt 0:00:10]} 6. Nc3 {[%emt 0:01:25]} e6 {[%emt 0:00:36]} 7. h5 {[%emt 0:01:03]} a6 {[%emt 0:04:35]} 8. Be3 {[%emt 0:00:57]} c5 {[%emt 0:02:48]} 9. dxc5 {[%emt 0:07:23]} Qc7 {[%emt 0:00:01]} 10. Qd2 {[%emt 0:00:14]} Bxc5 {[%emt 0:01:24]} 11. Bf4 {[%emt 0:02:58]} Bb4 {[%emt 0:05:31]} 12. Nf3 {[%emt 0:03:24]} Ne7 {[%emt 0:00:41]} 13. Bd3 {[%emt 0:00:58]} Bxc3 {[%emt 0:01:54]} 14. bxc3 {[%emt 0:00:50]} Nbc6 {[%emt 0:00:57]} 15. Rb1 {[%emt 0:03:33]} Rc8 {[%emt 0:00:58]} 16. O-O {[%emt 0:01:35]} Na5 {[%emt 0:00:46]} 17. Rfd1 {[%emt 0:00:24]} b5 {[%emt 0:03:38]} 18. Qe2 {[%emt 0:00:39]} Qxc3 {[%emt 0:03:52]} 19. Bd2 {[%emt 0:00:28]} Qc7 {[%emt 0:00:01]} 20. Bb4 {[%emt 0:00:55]} Nb7 {[%emt 0:00:01]} 21. Nd4 {[%emt 0:00:35]} Nc6 {[%emt 0:02:17]} 22. Nxc6 {[%emt 0:01:00]} Qxc6 {[%emt 0:00:15]} 23. a4 {[%emt 0:00:19]} Nc5 {[%emt 0:00:59]} 24. axb5 {[%emt 0:00:06]} axb5 {[%emt 0:00:03]} 25. c3 {[%emt 0:00:35]} O-O {[%emt 0:00:46]} 26. Bc2 {[%emt 0:00:07]} Rfd8 {[%emt 0:01:26]} 27. Rd4 {[%emt 0:00:01]} Be8 {[%emt 0:00:41]} 28. Rbd1 {[%emt 0:00:14]} Na6 {[%emt 0:00:30]} 29. Qd3 {[%emt 0:00:26]} Nxb4 {[%emt 0:00:26]} 30. Qh7+ {[%emt 0:00:01]} Kf8 {[%emt 0:00:01]} 31. Bg6 {[%emt 0:00:28]} Qxc3 {[%emt 0:00:34]} 32. Rf4 {[%emt 0:00:01]} Ke7 {[%emt 0:00:07]} 33. Qxg7 {[%emt 0:00:02]} Kd7 {[%emt 0:00:00]} 34. Bxf7 {[%emt 0:00:15]} Kc6 {[%emt 0:00:25]} 35. Bxe6 {[%emt 0:00:06]} Rc7 {[%emt 0:00:14]} 36. Qxh6 {[%emt 0:00:01]} Kb7 {[%emt 0:00:01]} 37. Rb1 {[%emt 0:00:36]} Rc4 {[%emt 0:00:13]} 38. Rxc4 {[%emt 0:01:34]} dxc4 {[%emt 0:00:07]} 39. Qg5 {[%emt 0:00:02]} Nc6 {[%emt 0:00:18]} 40. Rxb5+ {[%emt 0:00:05]} Ka6 {[%emt 0:00:01]} 41. Rb1 {[%emt 0:00:10]} Qxe5 {[%emt 0:00:24]} 42. Bxc4+ {[%emt 0:00:02]} Ka7 {[%emt 0:00:18]} 43. Qc1 {[%emt 0:00:30]} Na5 {[%emt 0:00:12]} 44. Bf1 {[%emt 0:00:13]} Bc6 {[%emt 0:00:15]} 45. Qe3+ {[%emt 0:00:30]} Qxe3 {[%emt 0:00:01]} 46. fxe3 {[%emt 0:00:01]} Bf3 {[%emt 0:00:25]} 47. Rb5 {[%emt 0:00:23]} Nc6 {[%emt 0:00:09]} 48. Rg5 {[%emt 0:00:06]} Rd6 {[%emt 0:00:10]} 49. Kf2 {[%emt 0:00:06]} Bd1 {[%emt 0:00:13]} 50. Kg3 {[%emt 0:00:12]} Nb4 {[%emt 0:00:18]} 51. Ra5+ {[%emt 0:00:13]} Na6 {[%emt 0:00:14]} 52. Rxa6+ {[%emt 0:00:21]} Rxa6 {[%emt 0:00:01]} 53. Bxa6 {[%emt 0:00:01]} Kxa6 {[%emt 0:00:01]} 54. Kf4 {[%emt 0:00:03]} Kb6 {[%emt 0:00:01]} 55. h6 {[%emt 0:00:04]} Bc2 {[%emt 0:00:04]} 56. e4 {[%emt 0:00:01]} 1-0

[Event "16th Deltalift Open 2019"]
[Site "Halmstad"]
[Date "2019.05.30"]
[Round "2.14"]
[White "Kucuksari, Kaan"]
[Black "Trost, Edvin"]
[Result "1/2-1/2"]
[ECO "E09"]
[WhiteElo "2320"]
[BlackElo "2047"]
[Annotator "ChessBase"]
[PlyCount "135"]
[EventDate "2019.05.30"]
[EventType "swiss"]
[EventCountry "SWE"]
[SourceTitle "playchess.com"]
[Source "ChessBase"]
[SourceQuality "1"]
[TimeControl "1800+12"]

1. d4 {[%emt 0:00:00]} Nf6 {[%emt 0:00:00]} 2. c4 {[%emt 0:00:00]} e6 {[%emt 0:00:00]} 3. Nf3 {[%emt 0:00:00]} d5 {[%emt 0:00:00]} 4. g3 {[%emt 0:00:00]} Be7 {[%emt 0:00:06]} 5. Bg2 {[%emt 0:00:00]} O-O {[%emt 0:00:11]} 6. O-O {[%emt 0:00:03]} c6 {[%emt 0:00:28]} 7. Nbd2 {[%emt 0:00:29]} Nbd7 {[%emt 0:00:07]} 8. Qc2 {[%emt 0:00:01]} b6 {[%emt 0:00:32]} 9. e4 {[%emt 0:00:07]} dxe4 {[%emt 0:00:04]} 10. Nxe4 {[%emt 0:00:14]} Bb7 {[%emt 0:00:25]} 11. Rd1 {[%emt 0:00:30]} Nxe4 {[%emt 0:03:33]} 12. Qxe4 {[%emt 0:00:02]} Nf6 {[%emt 0:00:02]} 13. Qc2 {[%emt 0:00:12]} Qc7 {[%emt 0:00:22]} 14. Bf4 {[%emt 0:00:15]} Bd6 {[%emt 0:00:46]} 15. Bxd6 {[%emt 0:01:13]} Qxd6 {[%emt 0:00:04]} 16. c5 {[%emt 0:00:00]} bxc5 {[%emt 0:02:30]} 17. dxc5 {[%emt 0:00:18]} Qc7 {[%emt 0:00:07]} 18. Qe2 {[%emt 0:00:47]} Rfd8 {[%emt 0:00:47]} 19. Qe5 {[%emt 0:00:30]} Qe7 {[%emt 0:01:11]} 20. Qc3 {[%emt 0:07:19]} Nd5 {[%emt 0:02:21]} 21. Qa5 {[%emt 0:00:01]} e5 {[%emt 0:06:25]} 22. Nd2 {[%emt 0:04:39]} Bc8 {[%emt 0:01:00]} 23. Nc4 {[%emt 0:00:35]} f6 {[%emt 0:03:10]} 24. Bxd5+ {[%emt 0:05:29]} Rxd5 {[%emt 0:00:40]} 25. Rxd5 {[%emt 0:00:43]} cxd5 {[%emt 0:00:01]} 26. Nb6 {[%emt 0:00:01]} axb6 {[%emt 0:04:53]} 27. Qxa8 {[%emt 0:00:04]} Qxc5 {[%emt 0:00:01]} 28. b4 {[%emt 0:04:42]} Qc4 {[%emt 0:00:30]} 29. b5 {[%emt 0:01:01]} Kf7 {[%emt 0:02:21]} 30. Qa7+ {[%emt 0:00:06]} Kg6 {[%emt 0:00:38]} 31. Qxb6 {[%emt 0:00:02]} Bh3 32. Qe3 {[%emt 0:00:43]} Qxb5 {[%emt 0:01:51]} 33. g4 {[%emt 0:00:23]} Qb2 {[%emt 0:00:26]} 34. Re1 {[%emt 0:04:54]} Qb4 {[%emt 0:00:20]} 35. f3 {[%emt 0:01:14]} h5 {[%emt 0:00:34]} 36. a3 {[%emt 0:00:08]} Qa5 {[%emt 0:00:18]} 37. gxh5+ {[%emt 0:00:08]} Kxh5 {[%emt 0:00:05]} 38. f4 {[%emt 0:00:02]} Bf5 {[%emt 0:00:28]} 39. fxe5 {[%emt 0:00:03]} fxe5 {[%emt 0:00:01]} 40. Qf3+ {[%emt 0:00:21]} Bg4 {[%emt 0:00:27]} 41. Rxe5+ {[%emt 0:00:17]} g5 {[%emt 0:00:02]} 42. Qf7+ {[%emt 0:00:14]} Kh4 {[%emt 0:00:01]} 43. Qf2+ {[%emt 0:00:23]} Kh5 {[%emt 0:00:01]} 44. Qe3 {[%emt 0:00:09]} Qd8 {[%emt 0:00:12]} 45. h3 {[%emt 0:00:08]} Bc8 {[%emt 0:00:09]} 46. Qf3+ {[%emt 0:00:07]} Kh6 {[%emt 0:00:35]} 47. Qf2 {[%emt 0:00:28]} d4 {[%emt 0:00:22]} 48. Re4 {[%emt 0:00:09]} d3 {[%emt 0:00:06]} 49. Rd4 {[%emt 0:00:13]} Qb6 {[%emt 0:00:21]} 50. Rxd3 {[%emt 0:00:11]} Qb1+ {[%emt 0:00:01]} 51. Qf1 {[%emt 0:00:01]} Qxf1+ {[%emt 0:00:16]} 52. Kxf1 Ba6 53. Ke2 {[%emt 0:00:02]} Kh5 {[%emt 0:00:01]} 54. Kd2 {[%emt 0:00:05]} Bxd3 {[%emt 0:00:00]} 55. Kxd3 Kh4 56. a4 {[%emt 0:00:05]} Kxh3 {[%emt 0:00:02]} 57. a5 {[%emt 0:00:03]} g4 {[%emt 0:00:01]} 58. a6 {[%emt 0:00:00]} g3 {[%emt 0:00:01]} 59. a7 {[%emt 0:00:59]} g2 {[%emt 0:00:01]} 60. a8=Q {[%emt 0:00:03]} g1=Q {[%emt 0:00:01]} 61. Qh8+ {[%emt 0:00:12]} Kg2 {[%emt 0:00:08]} 62. Qg7+ {[%emt 0:00:02]} Kf1 {[%emt 0:00:17]} 63. Qa1+ {[%emt 0:00:08]} Kg2 {[%emt 0:00:02]} 64. Qa8+ {[%emt 0:00:25]} Kh2 {[%emt 0:00:22]} 65. Qh8+ {[%emt 0:00:10]} Kg2 {[%emt 0:00:02]} 66. Qg7+ {[%emt 0:00:01]} Kf1 {[%emt 0:00:06]} 67. Qxg1+ {[%emt 0:00:02]} Kxg1 {[%emt 0:00:01]} 68. Ke4 1/2-1/2